Cogmind - Beta 15 @@@ ROGUE MODE // 2025.06.15 @ 21:06:54 Player: Cracklepappy Result: Destroyed by B-86 Titan with Hardcell Cannon Performance ------------- Evolutions (6) 3000 Regions Visited (26) 5200 Robots Destroyed (462) 2310 Value Destroyed (26275) 26275 Prototype IDs (25) 500 Alien Tech Used (0) 0 Bonus (22247) 22247 TOTAL SCORE: 59532 Bonus ------- Triggered High Security 500 High Alert Combat Kills 9219 Follower Combat Kills 5303 Entered Garrisons 1800 Used RIF Installer 5500 Friendly Fire -75 Cogmind --------- Core Integrity 0/1150 Matter 285/300 Energy 72/100 System Corruption 32% Temperature Cool (9) Movement Core (50) Location -4/Garrison Parts ------- > --- POWER (2) -------- (None) > --- PROPULSION (4) --- (None) > --- UTILITY (9) ------ Relay Coupler [Behemoth] (12) > --- WEAPON (4) ------- (None) > --- INVENTORY (5) ---- Relay Coupler [NC] (24) Relay Coupler [Proto] (9) Power Sword Peak State ------------ > --- POWER ------------ Backup Power I Reinforced Quantum Reactor > --- PROPULSION ------- Biometal Heavy Treads Advanced Heavy Siege Treads > --- UTILITY ---------- Advanced Cooling System Cargo Storage Unit Core Analyzer Graphene Brace Relay Coupler [NC] Relay Coupler [Swarmer] Relay Coupler [Demolisher] Relay Coupler [Heavy] > --- WEAPON ----------- Enhanced Quantum Rifle Enhanced Quantum Rifle Enhanced Hardcell Cannon Compact Linear Accelerator > --- INVENTORY -------- Reinforced Quantum Reactor Improved Heavy Treads Wheel Armored Huge Wheel Advanced Cooling System Advanced Coolant Injector Matter Compressor Advanced Recoil Stabilizer Improved Weapon Cycler Relay Coupler [NC] Relay Coupler [NC] Relay Coupler [NC] Relay Coupler [NC] Relay Coupler [NC] Relay Coupler [Proto] Relay Coupler [Proto] Relay Coupler [Proto] Relay Coupler [Proto] Improved Dynamic Insulation System Force Rifle Enhanced Nova Cannon Enhanced Hardcell Cannon Enhanced Hardcell Cannon Precision Rocket Launcher Advanced Datajack Improved Remote Datajack Improved Plasma Cutter Power Sword [Rating: 134] Favorites ----------- Power Reinforced Quantum Reactor Engine Reinforced Deuterium Engine Power Core Reinforced Fission Core Reactor Reinforced Quantum Reactor Propulsion Armored Wheel Treads Advanced Treads Wheel Armored Wheel Hover Unit Gravmag System Flight Unit Improved VTOL Module Utility Core Analyzer Device Advanced Cooling System Storage Huge Storage Unit Processor Core Analyzer Hackware Relay Coupler [Grunt] Protection Medium Armor Plating Weapon Improved Assault Rifle Energy Gun Enhanced Quantum Rifle Energy Cannon Matter Neutralizer Ballistic Gun Improved Assault Rifle Ballistic Cannon Enhanced Hardcell Cannon Launcher Micro-nuke Launcher Special Weapon Remote Datajack Impact Weapon Heavy Flail Slashing Weapon Power Sword Special Melee Weapon Advanced Datajack Build | -11 -10 -10 -9 -9 -8 -8 -8 -8 -8 -8 -7 -7 -7 -7 -6 -6 -6 -6 -5 -5 -5 -5 -4 -4 -4 -4 ------- Run | Yrd Mat Min Mat Min Mat Gar Mat Gar Mat Gar Fac Gar Fac Gar Fac Was Fac Gar Fac Gar Fac Gar Fac Was Fac Gar Slots Evolved 12 | . . . 2 . 2 . . . . . 2 . . . 2 . . . 2 . . . 2 . . . Power 1 | . . . . . . . . . . . . . . . . . . . . . . . 1 . . . Propulsion 2 | . . . 1 . . . . . . . 1 . . . . . . . . . . . . . . . Utility 7 | . . . . . 1 . . . . . 1 . . . 2 . . . 2 . . . 1 . . . Weapon 2 | . . . 1 . 1 . . . . . . . . . . . . . . . . . . . . . Parts Attached 298 | 7 10 5 23 . 9 15 4 3 19 13 5 27 7 13 3 1 15 23 3 20 1 22 3 2 6 39 Power 22 | 1 1 2 2 . . 2 . . 2 2 . 3 . 1 . . . 1 . . . 2 . . . 3 Engine 8 | 1 1 1 2 . . 1 . . 1 . . 1 . . . . . . . . . . . . . . Core 7 | . . 1 . . . 1 . . 1 2 . 1 . . . . . 1 . . . . . . . . Reactor 7 | . . . . . . . . . . . . 1 . 1 . . . . . . . 2 . . . 3 Propulsion 52 | 2 4 1 11 . 5 2 1 . 4 5 . 2 1 2 . . . 3 . 3 . . . . . 6 Treads 33 | 2 4 1 11 . 1 . . . 1 1 . 2 . 1 . . . 1 . 3 . . . . . 5 Leg . | . . . . . . . . . . . . . . . . . . . . . . . . . . . Wheel 13 | . . . . . 3 2 1 . 3 . . . 1 1 . . . 2 . . . . . . . . Hover 1 | . . . . . . . . . . 1 . . . . . . . . . . . . . . . . Flight 5 | . . . . . 1 . . . . 3 . . . . . . . . . . . . . . . 1 Utility 127 | 2 2 . 2 . 3 5 2 2 4 6 3 15 2 2 3 1 8 12 3 10 1 12 2 2 4 19 Device 36 | 1 . . . . 3 2 . 1 1 2 . 3 1 . 1 . 2 7 . 1 . 2 1 1 1 6 Storage 7 | 1 2 . 1 . . . . . . . . 1 . . . . . . . 1 . 1 . . . . Processor 6 | . . . . . . . . . . . 2 . 1 . 1 . 2 . . . . . . . . . Hackware 70 | . . . . . . . 2 1 3 3 1 11 . 2 1 1 4 5 3 8 1 8 1 1 3 11 Protection 8 | . . . 1 . . 3 . . . 1 . . . . . . . . . . . 1 . . . 2 Artifact . | . . . . . . . . . . . . . . . . . . . . . . . . . . . Weapon 97 | 2 3 2 8 . 1 6 1 1 9 . 2 7 4 8 . . 7 7 . 7 . 8 1 . 2 11 Energy Gun 17 | 1 . . . . . . . . . . . . . 2 . . 3 1 . 3 . 1 . . 1 5 Energy Cannon 7 | . . . 1 . . . . . 1 . . . . 1 . . 1 1 . 1 . . . . . 1 Ballistic Gun 36 | 1 2 2 5 . 1 3 1 1 5 . . . 4 3 . . 2 3 . . . . . . . 3 Ballistic Cannon 17 | . 1 . . . . . . . 1 . . 4 . . . . . 1 . 3 . 6 1 . . . Launcher 5 | . . . 1 . . . . . 1 . . . . . . . . 1 . . . . . . . 2 Special Weapon 7 | . . . . . . 2 . . 1 . . . . 2 . . 1 . . . . 1 . . . . Impact Weapon 5 | . . . 1 . . 1 . . . . 2 1 . . . . . . . . . . . . . . Slashing Weapon 2 | . . . . . . . . . . . . 2 . . . . . . . . . . . . . . Piercing Weapon . | . . . . . . . . . . . . . . . . . . . . . . . . . . . Special Melee Weapon 1 | . . . . . . . . . . . . . . . . . . . . . . . . . 1 . Unidentified Prototypes 14 | . . . 3 . 1 . . . . . . . . . . . 2 . . . . 3 . . . 5 Parts Lost 69 | . . 5 . . . 4 1 1 8 13 . 1 . 4 . . . 1 . 2 . 2 . . 5 22 Power 9 | . . 1 . . . . . . 1 3 . . . . . . . . . . . . . . 1 3 Propulsion 19 | . . 1 . . . 2 . . 3 5 . . . 1 . . . . . . . . . . 2 5 Utility 14 | . . . . . . 1 1 1 . 3 . . . 1 . . . 1 . 1 . 2 . . 1 2 Weapon 27 | . . 3 . . . 1 . . 4 2 . 1 . 2 . . . . . 1 . . . . 1 12 Highest Loss Streak 8 | . . 5 . . . 2 1 1 4 6 . 1 . 1 . . . 1 . 1 . 1 . . 4 8 To Critical Strikes 1 | . . . . . . . . . . . . . . . . . . . . . . . . . . 1 Average Backups 19 | 5 12 14 18 20 19 19 20 19 19 13 4 11 23 21 19 19 19 19 18 21 22 23 27 26 27 28 Power . | . . . . . . . . 1 . . . . 1 1 2 2 1 1 1 1 1 1 1 1 1 . Propulsion 3 | 2 5 8 8 9 9 9 7 6 5 2 . . 1 1 2 2 2 2 2 1 2 2 2 2 2 . Utility 8 | . 1 1 3 4 3 4 6 6 5 4 2 6 14 13 11 10 9 9 8 8 9 11 16 15 14 20 Weapon 5 | 1 4 2 5 5 4 4 4 4 4 3 1 3 5 3 3 4 5 5 5 7 8 7 6 6 7 4 Tool/Special . | . . . . . . . . . . . . . . . . . . . . . . . . . . . Unused Backups 124 | . 12 2 11 . 6 1 1 4 2 6 1 19 9 7 . . 5 5 . 5 . 4 1 . 1 22 Power 4 | . 1 . 1 . 1 . . . . . . 1 . . . . . . . . . . . . . . Propulsion 13 | . 8 . . . 1 . 1 1 . . . . . . . . . . . . . . . . . 2 Utility 73 | . 1 1 4 . 1 1 . 3 . 4 1 14 8 4 . . 3 5 . 3 . 1 . . . 19 Weapon 33 | . 2 1 6 . 2 . . . 2 2 . 4 1 3 . . 2 . . 2 . 3 1 . 1 1 Tool/Special 1 | . . . . . 1 . . . . . . . . . . . . . . . . . . . . . Average Slot Usage (%) 88 | . 100 99 98 100 99 99 99 99 98 86 96 85 73 82 83 85 84 84 93 87 88 83 78 84 82 78 Engine 3 | . 14 6 10 11 9 5 . . 1 1 . . 7 6 1 6 6 3 . . . . 4 5 3 . Core 2 | . . 7 . . . 3 9 9 7 6 7 6 . . . . . 2 5 5 5 2 . . . . Reactor 1 | . . . . . . . . . . . . . . . 4 . . . . . . 2 5 5 5 9 Treads 11 | . 28 28 32 33 16 . . . . 2 . 5 7 8 13 13 13 9 . 9 11 11 10 10 8 8 Wheel 4 | . . . . . 10 26 27 27 25 9 . . 6 5 . . . 6 17 2 . . . . 1 . Flight 2 | . . . . . . . . . . 11 30 18 . . . . . . . . . . . . . . Device 6 | . 14 14 1 . 9 10 8 8 3 10 2 1 9 9 10 13 9 10 5 8 5 1 1 5 8 3 Storage 6 | . 14 14 11 11 9 9 9 9 9 5 . 2 7 7 6 6 6 6 5 5 5 5 5 5 5 4 Processor 5 | . . . . . . . . . . . 5 7 7 7 6 6 14 13 11 11 11 8 5 5 5 4 Hackware 11 | . . . . . . . 6 . 10 6 20 15 4 4 13 12 6 8 22 18 22 26 25 26 21 24 Protection 2 | . . . 9 11 8 7 2 9 3 2 . . . . . . . . . . . . . . . 1 Energy Gun 2 | . 2 . . . . . . . . . . . . . 6 6 6 . . 6 11 2 . . 5 6 Ballistic Gun 13 | . 23 25 32 33 35 33 32 34 33 18 1 . 9 22 8 6 10 11 12 1 . . . . . 4 Ballistic Cannon 4 | . 1 2 . . . . . . . . . 5 10 . . . . 3 . 11 7 14 15 16 10 2 Special Weapon 2 | . . . . . . . 3 1 . 3 7 4 . 4 6 6 5 2 3 . . 2 4 4 3 1 Impact Weapon 1 | . . . . . . 2 . . . 6 19 12 . . . . . . . . . . . . . . Peak Build Rating 134 | 7 13 15 28 27 33 38 39 39 42 44 50 83 83 81 90 87 88 102 83 127 123 127 130 129 134 127 Average Rating 71 | 5 11 13 24 27 31 33 36 37 36 37 47 61 74 72 86 86 84 87 82 117 120 120 121 126 123 109 On Entrance 65 | . 7 12 15 27 27 30 38 34 39 40 42 49 83 75 81 86 87 85 79 83 123 122 120 129 126 119 Naked Turns 14 | . . . . . . . . . . . . . . . . . . . . . . . . . . 14 Heaviest Build 240 | 12 34 34 66 66 71 83 83 85 86 80 20 136 136 121 117 114 118 136 129 150 141 208 218 219 215 240 Greatest Support 155 | 40 46 46 66 66 66 36 36 36 36 24 20 120 120 135 135 135 135 135 52 155 155 155 155 155 155 150 Greatest Overweight (x) 8 | . . . 1 . 5 2 2 2 3 6 . 1 4 4 . . . 4 2 2 . 1 1 1 7 8 Average Overweight (x) . | . . . . . 1 1 1 2 1 1 . . 3 3 . . . . 2 . . . 1 1 2 2 Largest Inventory Capacity 30 | 8 15 15 20 20 20 20 20 20 20 20 5 25 25 25 25 25 25 25 25 25 25 30 30 30 30 30 Average Capacity 21 | 7 12 15 19 20 20 20 20 20 20 13 5 12 25 25 25 25 25 25 25 25 25 26 30 30 30 29 Most Carried 30 | 8 15 15 20 20 20 20 20 20 20 20 5 25 25 25 25 25 25 25 24 25 25 30 30 29 30 30 Average Carried 21 | 5 12 14 18 20 19 19 19 19 19 13 4 11 24 24 24 24 24 24 23 24 25 26 29 28 28 28 Final Capacity 30 | 8 15 15 20 20 20 20 20 20 20 5 5 25 25 25 25 25 25 25 25 25 25 30 30 30 30 5 Final Carried 30 | 8 15 15 20 20 20 20 20 20 20 5 5 25 25 25 25 25 21 25 23 25 25 30 29 28 29 3 Class Distribution -------------------- 30% | Botlord-Tank 21% | Tank 13% | Botlord-Gunner 10% | Mutant 5% | Gunner 4% | Commander-Tank 3% | Commander-Sprinter Dominant Class ---------------- Mutant | -10/Materials Mutant | -10/Mines Tank | -9/Materials Tank | -9/Mines Tank | -8/Materials Tank | -8/Garrison Gunner | -8/Materials Tank | -8/Garrison Gunner | -8/Materials Tank | -8/Garrison Bothacker-Sprinter | -7/Factory Commander-Sprinter | -7/Garrison Commander-Gunner | -7/Factory Botlord-Tank | -7/Garrison Botlord-Gunner | -6/Factory Botlord-Gunner | -6/Waste Botlord-Gunner | -6/Factory Botlord-Gunner | -6/Garrison Botlord-Gunner | -5/Factory Botlord-Tank | -5/Garrison Botlord-Tank | -5/Factory Botlord-Tank | -5/Garrison Botlord-Tank | -4/Factory Botlord-Tank | -4/Waste Botlord-Tank | -4/Factory Botlord-Tank | -4/Garrison Resources | -11 -10 -10 -9 -9 -8 -8 -8 -8 -8 -8 -7 -7 -7 -7 -6 -6 -6 -6 -5 -5 -5 -5 -4 -4 -4 -4 ----------- Run | Yrd Mat Min Mat Min Mat Gar Mat Gar Mat Gar Fac Gar Fac Gar Fac Was Fac Gar Fac Gar Fac Gar Fac Was Fac Gar Matter Collected 21825 | 277 375 122 1270 18 415 861 132 651 1508 1042 215 1304 1359 869 47 135 750 2325 102 1743 43 2289 460 . 1304 2209 Remotely . | . . . . . . . . . . . . . . . . . . . . . . . . . . . Salvage Created 20312 | 183 620 166 2055 55 633 967 27 654 1857 812 37 282 1443 1865 47 . 664 1878 . 995 . 1236 404 . 1414 2018 Parts 998 | 15 39 4 137 3 49 53 4 38 97 43 . 4 62 84 3 . 43 74 . 46 . 38 10 . 70 82 Haulers Intercepted 13 | . 2 . 6 . 5 . . . . . . . . . . . . . . . . . . . . . Recyclers Shooed 9 | . . . 2 . 1 . . . . . . . 3 . . . . . . . . . . . 3 . Parts Field Recycled . | . . . . . . . . . . . . . . . . . . . . . . . . . . . Retrieved Matter . | . . . . . . . . . . . . . . . . . . . . . . . . . . . Parts Self-Destructed . | . . . . . . . . . . . . . . . . . . . . . . . . . . . Prevented . | . . . . . . . . . . . . . . . . . . . . . . . . . . . Kills | -11 -10 -10 -9 -9 -8 -8 -8 -8 -8 -8 -7 -7 -7 -7 -6 -6 -6 -6 -5 -5 -5 -5 -4 -4 -4 -4 ------- Run | Yrd Mat Min Mat Min Mat Gar Mat Gar Mat Gar Fac Gar Fac Gar Fac Was Fac Gar Fac Gar Fac Gar Fac Was Fac Gar Combat Hostiles Destroyed 374 | . 12 2 32 1 10 21 2 13 40 22 1 10 27 28 . . 11 26 . 31 . 28 9 . 17 31 Melee 9 | . . . . . . . . . . 6 . 3 . . . . . . . . . . . . . . Guns 206 | . 10 1 30 1 10 21 2 13 25 12 . . 23 24 . . 9 11 . 2 . 2 . . 4 6 Cannons 90 | . 2 1 1 . . . . . 6 . . . 4 4 . . 2 9 . 15 . 21 8 . 11 6 AOE 61 | . . . 1 . . . . . 9 . . 6 . . . . . 6 . 13 . 5 1 . 2 18 Classes Destroyed 22 | 2 4 2 4 . . 2 . 1 2 1 . 1 . 1 . . . 1 . . . 1 . . . . Worker 11 | . . . 1 . 1 . . . 4 . . . 1 . . . . . . . . . . . 4 . Builder 18 | . . 1 2 . . . . . 4 . . . 1 . . . 2 . . . . . . . 8 . Tunneler 6 | 4 . . . 1 1 . . . . . . . . . . . . . . . . . . . . . Hauler 14 | . 2 . 6 . 5 . . . . . . . . . . . . . . . . . . . . 1 Recycler 15 | 1 1 . 5 . 2 . . . 1 . . . 1 . . . . . . . . . . . 4 . Mechanic 3 | . . . . . . . . . 1 . . . 1 . . . . . . . . . . . . 1 Operator 2 | . . . 2 . . . . . . . . . . . . . . . . . . . . . . . Watcher 10 | . 3 . 5 . . 1 . . . 1 . . . . . . . . . . . . . . . . Swarmer 81 | . 3 . 7 . 10 4 2 4 3 6 . . 2 9 . . . 5 . 17 . 3 . . . 6 Cutter 11 | . . . . . . . . . . . . . . 2 . . . 3 . . . 3 . . . 3 Grunt 150 | . 9 . 15 . . 10 . 4 28 3 1 8 15 11 . . 6 6 . 4 . 8 6 . 5 11 Brawler 14 | . . . 1 . . 1 . . 1 2 . . 1 . . . . 1 . . . 5 . . 2 . Duelist 7 | . . . . . . 1 . . 1 . . . 3 2 . . . . . . . . . . . . Protector 3 | . . . . . . . . 1 1 . . . 1 . . . . . . . . . . . . . Sentry 39 | . . . 9 1 . 4 . 3 5 . . 1 1 1 . . 2 4 . 5 . 1 1 . 1 . Demolisher 5 | . . 2 . . . . . 1 . . . . . . 1 . . . . 1 . . . . . . Specialist 9 | . . . . . . . . . . . . 1 1 . . . . 5 . . . 1 . . . 1 Hunter 18 | . . . . . . . . . . 2 . . 1 1 . . . . . 2 . 2 2 . 2 6 Programmer 34 | . . . . . . 1 . . . 9 . . 2 2 . . 3 . . 3 . 4 . . 7 3 Heavy 1 | . . . . . . . . . 1 . . . . . . . . . . . . . . . . . Behemoth 7 | . . . . . . . . . . . . . . . . . . 2 . 2 . 3 . . . . Striker 3 | . . . . . . . . . . . . . . . . . . . . . . 2 . . . 1 Butcher 1 | . . . . . . . . . . . . . . 1 . . . . . . . . . . . . Best Kill Streak 15 | 2 5 2 15 1 6 4 2 6 12 5 1 6 11 5 . . 3 5 . 12 . 8 5 . 12 7 Combat Bots Only 12 | . 5 1 7 1 4 4 2 6 10 5 1 6 9 5 . . 3 5 . 12 . 8 5 . 6 7 Max Kills in Single Turn 5 | 1 2 1 2 1 2 2 1 2 5 2 1 2 2 2 1 . 2 3 . 4 . 3 2 . 2 5 Gunslinging 1 | . 1 . 1 . 1 . . 1 . 1 . . 1 1 . . . . . . . . . . . . Exploded 5 | . . . 1 . . . . . 3 . . 2 . . . . . 3 . 4 . 3 1 . 1 5 Melee 1 | . . . . . . . . . . 1 . 1 . . . . . . . . . . . . . . Uniques/NPCs Destroyed . | . . . . . . . . . . . . . . . . . . . . . . . . . . . Combat | -11 -10 -10 -9 -9 -8 -8 -8 -8 -8 -8 -7 -7 -7 -7 -6 -6 -6 -6 -5 -5 -5 -5 -4 -4 -4 -4 -------- Run | Yrd Mat Min Mat Min Mat Gar Mat Gar Mat Gar Fac Gar Fac Gar Fac Was Fac Gar Fac Gar Fac Gar Fac Was Fac Gar Hostile Shots Fired 2151 | . 61 19 91 . 37 83 7 42 140 158 2 113 125 147 2 . 43 200 9 124 . 70 98 . 126 454 Missed 687 | . 20 . 28 . 11 12 2 12 35 34 2 52 38 57 1 . 16 69 2 33 . 18 44 . 51 150 Hits 1464 | . 41 19 63 . 26 71 5 30 105 124 . 61 87 90 1 . 27 131 7 91 . 52 54 . 75 304 Melee 36 | . . . . . . 8 . . . 5 . . 3 4 . . . . . . . 10 . . . 6 Projectile 1428 | . 41 19 63 . 26 63 5 30 105 119 . 61 84 86 1 . 27 131 7 91 . 42 54 . 75 298 AOE 35 | . . 19 . . . . . 2 . . . . . . . . . 2 . 4 . 3 2 . . 3 Critical Strikes 52 | . . . 3 . . 3 . 3 5 9 . . 3 4 . . 2 2 . 1 . 6 2 . 1 8 Actively Blocked 3 | . . . . . . . . . . . . . . . . . . . . . . . . . 1 2 Part Disruptions 9 | . . . . . . . . . . 1 . . . . . . . 4 . 1 . . . . 1 2 Damage Taken 23887 | . 446 836 755 . 143 1038 74 357 1750 1496 . 871 1461 851 82 64 428 1765 201 2103 . 1055 831 16 1458 5806 Core 2782 | . 31 143 85 . . 101 14 18 194 209 . 133 151 48 . 51 65 142 34 106 . 67 96 . 146 948 Absorbed by Shields 1992 | . . . . . 58 167 . 46 . 382 . 145 167 273 . . . 93 . 75 . 283 193 . . 110 Reduced by Siege Mode 18 | . . . . . . . . . . . . 18 . . . . . . . . . . . . . . Ignored by Resistances 68 | . . . . . . . . 50 18 . . . . . . . . . . . . . . . . . Regen/Repaired (Parts) 2316 | . . . 241 . 54 . . . 400 . . 11 . . 41 . 20 656 . 549 . 121 182 . 41 . Core Remaining (%) 58 | 100 . 30 . 78 . . . . . 2 . . . 52 . . . 69 . . . 79 . . . . Volleys Fired 1320 | 7 51 14 92 2 27 49 14 97 102 53 9 90 53 69 8 10 72 110 13 67 . 97 30 6 63 115 Largest 4 | 2 2 2 3 3 4 4 4 4 4 4 1 2 4 4 1 1 4 4 1 4 . 4 4 1 4 4 Hottest 308 | 70 70 53 114 69 92 92 92 99 169 100 10 130 130 175 5 5 218 218 5 246 . 246 232 7 308 301 Shots Fired 2997 | 14 102 28 276 6 108 169 17 166 335 160 9 97 196 178 8 10 120 194 13 168 . 208 61 6 153 195 Gun 1931 | 14 93 25 274 6 108 165 6 95 271 151 . . 180 143 . . 56 125 . 45 . 46 . . 62 66 Cannon 575 | . 9 3 2 . . . . . 40 . . 19 16 16 . . 18 39 . 96 . 126 43 . 70 78 Launcher 40 | . . . . . . . . . 6 . . 9 . . . . . 3 . 5 . 2 . . 4 11 Special 451 | . . . . . . 4 11 71 18 9 9 69 . 19 8 10 46 27 13 22 . 34 18 6 17 40 Kinetic 2130 | 7 92 28 274 6 108 165 6 95 291 151 . 19 196 143 . . 45 117 . 107 . 126 43 . 67 44 Thermal 436 | 7 10 . 2 . . 3 . 71 20 . . . . 16 . . 29 47 . 34 . 46 . . 65 86 Explosive 40 | . . . . . . . . . 6 . . 9 . . . . . 3 . 5 . 2 . . 4 11 Electromagnetic 14 | . . . . . . . . . . . . . . . . . . . . . . . . . . 14 Robot Hit Streak 30 | 5 10 18 30 13 15 15 3 24 19 9 13 25 13 12 6 8 10 20 5 16 . 24 9 4 11 8 Robot Miss Streak 8 | 1 3 1 3 . 4 3 1 8 4 5 . 2 5 5 1 2 6 3 3 6 . 5 2 1 4 6 Penetration Max 2 | . . . . . . . . . . . . . 2 1 . . . 1 . . . 1 . . . . Secondary Targets 42 | . 1 . 8 . 1 5 . 4 6 2 . . 6 8 . . . 1 . . . . . . . . Max Gunslinging Chain 2 | . 1 . 1 . 1 1 . 1 1 2 . . 2 1 . . . 1 . . . . . . . . Shots Hit Robots 1958 | 11 70 22 178 5 47 114 10 117 200 117 12 77 122 131 7 8 72 163 9 94 . 111 39 5 97 120 Core Hits 830 | 7 29 8 79 2 21 48 2 42 97 29 . 13 61 64 1 . 22 61 . 58 . 48 15 . 54 69 Critical Kills 17 | . 1 . 1 . . 2 . . 1 1 . . 2 3 . . 2 2 . 1 . . . . . 1 Critical Parts Destroyed 20 | . . . . . . . . . 1 5 1 1 5 2 . . 2 3 . . . . . . . . Critical Strikes 79 | 1 1 . 1 . . 2 . . 3 7 1 6 8 5 . . 4 13 . 4 . 10 3 . 5 5 Burn 2 | 1 . . . . . . . . . . . . . . . . . . . . . . . . . 1 Meltdown 1 | . . . . . . . . . . . . . . . . . . . . 1 . . . . . . Destroy 30 | . 1 . 1 . . 2 . . 2 . . . 7 5 . . 4 7 . . . . . . . 1 Blast 31 | . . . . . . . . . 1 . . 4 1 . . . . 2 . 3 . 10 3 . 5 2 Smash 9 | . . . . . . . . . . 7 1 1 . . . . . . . . . . . . . . Sever 6 | . . . . . . . . . . . . 1 . . . . . 4 . . . . . . . 1 Melee Attacks 271 | . . . 1 . . 18 . 2 . 46 9 33 . 53 1 . 9 32 . 5 . 13 2 . 3 44 Impact 95 | . . . 1 . . 18 . 2 . 46 9 19 . . . . . . . . . . . . . . Slashing 176 | . . . . . . . . . . . . 14 . 53 1 . 9 32 . 5 . 13 2 . 3 44 Piercing . | . . . . . . . . . . . . . . . . . . . . . . . . . . . Sneak Attacks 12 | . . . . . . . . . . . . 7 . . 1 . 2 . . . . . . . 2 . Combat Hostiles 7 | . . . . . . . . . . . . 7 . . . . . . . . . . . . . . Follow-up Attacks 3 | . . . . . . . . . . . 1 2 . . . . . . . . . . . . . . Damage Inflicted 56773 | 115 1027 350 2858 98 797 1733 29 1618 4740 2747 184 2925 3616 4103 92 . 1227 6387 . 4382 . 4760 1368 . 4585 7032 Guns 23544 | 115 899 295 2666 66 797 1701 29 933 2646 1610 . . 3082 1781 . . 852 2220 . 685 . 572 . . 1488 1107 Cannons 14709 | . 122 55 41 . . . . . 630 . . 1025 422 307 . . 213 1609 . 2383 . 3671 1044 . 1987 1200 Explosions 9450 | . . . 82 . . . . . 1464 . . 1217 . . . . . 555 . 1314 . 517 324 . 934 3043 Melee 8107 | . . . . . . . . . . 1116 184 683 . 2015 92 . 162 2003 . . . . . . 170 1682 Ramming 246 | . 6 . 69 32 . . . . . 21 . . 112 . . . . . . . . . . . 6 . Kinetic 31537 | 42 970 350 2666 66 797 1701 29 933 2959 1610 . 1025 3504 1781 . . 644 2712 . 2447 . 3671 1044 . 1888 698 Thermal 7584 | 73 51 . 123 . . 32 . 685 317 . . . . 307 . . 421 1117 . 621 . 572 324 . 1587 1354 Explosive 9044 | . . . . . . . . . 1464 . . 1217 . . . . . 555 . 1314 . 517 . . 934 3043 Electromagnetic 255 | . . . . . . . . . . . . . . . . . . . . . . . . . . 255 Impact 1753 | . . . . . . . . . . 1116 184 453 . . . . . . . . . . . . . . Slashing 6354 | . . . . . . . . . . . . 230 . 2015 92 . 162 2003 . . . . . . 170 1682 Piercing . | . . . . . . . . . . . . . . . . . . . . . . . . . . . Highest Corruption 32 | . . . . . 1 . . . . 16 . . 1 1 . 17 19 22 . 2 2 7 . 16 23 32 Average Corruption 12 | . . . . . 1 . . . . 12 . . 1 1 . 12 17 20 . 1 2 6 . 10 17 24 Corruption Purged 2 | . . . . . 2 . . . . . . . . . . . . . . . . . . . . . Corruption Blocked . | . . . . . . . . . . . . . . . . . . . . . . . . . . . Effects 723 | . . . . . 1 . . . . 63 . . . 15 . 9 83 133 . 35 3 160 . 6 66 149 Message Errors 166 | . . . . . . . . . . 16 . . . 5 . 2 11 22 . 6 . 49 . 1 20 34 Matter Fused 189 | . . . . . . . . . . 17 . . . 5 . 3 24 34 . 14 1 43 . 2 14 32 Heat Flow Errors 88 | . . . . . . . . . . 7 . . . 2 . . 14 12 . 5 . 21 . 2 5 20 Energy Discharges 86 | . . . . . 1 . . . . 9 . . . . . 1 8 17 . 4 . 14 . 1 9 22 Parts Rejected 8 | . . . . . . . . . . 1 . . . . . . . 3 . . . . . . . 4 Parts Fused 9 | . . . . . . . . . . . . . . 1 . . . 3 . 1 . 2 . . . 2 Data Loss (minor) 77 | . . . . . . . . . . 6 . . . 2 . 3 12 15 . 2 2 15 . . 5 15 Data Loss (major) 30 | . . . . . . . . . . 4 . . . . . . 4 4 . . . 8 . . 4 6 Misfires 23 | . . . . . . . . . . 2 . . . . . . 2 5 . 1 . 7 . . 1 5 Alerts 16 | . . . . . . . . . . 1 . . . . . . . 11 . 1 . 1 . . . 2 Misdirections 6 | . . . . . . . . . . . . . . . . . 2 1 . . . . . . 1 2 Weapon Failures 25 | . . . . . . . . . . . . . . . . . 6 6 . 1 . . . . 7 5 Overload Shots . | . . . . . . . . . . . . . . . . . . . . . . . . . . . Overflow Damage 2051 | . . . . 12 . . . . 36 510 134 259 140 14 . . 102 268 . 94 . 117 34 . 133 198 Projectiles 601 | . . . . . . . . . 36 . . 15 140 8 . . . 101 . 33 . 117 . . 72 79 Explosions 207 | . . . . . . . . . . . . 19 . . . . . 14 . 61 . . 34 . 5 74 Melee 1243 | . . . . 12 . . . . . 510 134 225 . 6 . . 102 153 . . . . . . 56 45 Knockbacks 54 | . . 1 1 . . . . . 3 3 2 3 4 . . . . 4 . 4 . 6 6 . 11 6 Impact 10 | . . . 1 . . . . . . 3 2 2 2 . . . . . . . . . . . . . Kinetic 41 | . . 1 . . . . . . 3 . . . 2 . . . . 4 . 3 . 5 6 . 11 6 Secondary 3 | . . . . . . . . . . . . 1 . . . . . . . 1 . 1 . . . . Self-Inflicted Damage 277 | . . . . . . . . . . 10 . . 54 . . . . . . 30 . . . . 3 180 Shots 6 | . . . . . . . . . . . . . . . . . . . . 1 . . . . . 5 Rammed 16 | . 3 . 2 . . . . . . 2 . . 8 . . . . . . . . . . . 1 . Targets Rammed 18 | . 3 . 3 1 . . . . . 2 . . 8 . . . . . . . . . . . 1 . Kicked . | . . . . . . . . . . . . . . . . . . . . . . . . . . . Crushed 2 | . . . 1 1 . . . . . . . . . . . . . . . . . . . . . . Highest Temperature 513 | 50 52 . 143 42 127 283 . 69 396 237 . 124 360 252 . . 235 513 . 212 . 415 443 139 283 471 Average Temperature 83 | 22 17 . 34 23 36 102 . 19 97 84 . 41 91 76 . . 80 112 . 59 . 110 115 64 113 120 Received Heat Transfer 4490 | . 183 . 291 . . 344 18 188 837 132 . 134 475 241 9 6 120 638 . 138 . 75 182 . 123 356 Effects 22 | . . . . . . . . . 1 . . . . . . . . 5 . . . 5 1 . . 10 Shutdowns 9 | . . . . . . . . . 1 . . . . . . . . 1 . . . 2 1 . . 4 Energy Bleed 3 | . . . . . . . . . . . . . . . . . . 1 . . . 2 . . . . Interference 7 | . . . . . . . . . . . . . . . . . . 1 . . . 1 . . . 5 Damage (minor) 1 | . . . . . . . . . . . . . . . . . . . . . . . . . . 1 Damage (major) 2 | . . . . . . . . . . . . . . . . . . 2 . . . . . . . . Siege Activations 2 | . . . . . . . . . . . . 2 . . . . . . . . . . . . . . Total Turns 24 | . . . . . . . . . . . . 24 . . . . . . . . . . . . . . Longest Duration 14 | . . . . . . . . . . . . 14 . . . . . . . . . . . . . . Martial Activations . | . . . . . . . . . . . . . . . . . . . . . . . . . . . Shielding Activations . | . . . . . . . . . . . . . . . . . . . . . . . . . . . Robots Disrupted . | . . . . . . . . . . . . . . . . . . . . . . . . . . . Combat Hostiles . | . . . . . . . . . . . . . . . . . . . . . . . . . . . Robots Corrupted 7 | . . . . . . . . . . 4 1 1 . . . . . . . . . . . . . 1 Combat Hostiles 7 | . . . . . . . . . . 4 1 1 . . . . . . . . . . . . . 1 Parts Fried 6 | . . . . 2 . . . . . 2 . 1 . . . . . . . . . . . . . 1 Impact Corruptions 25 | . . . . 1 . . . . . 18 3 3 . . . . . . . . . . . . . . Robots Melted 1 | . . . . . . . . . . . . . . . . . . . . 1 . . . . . . Combat Hostiles 1 | . . . . . . . . . . . . . . . . . . . . 1 . . . . . . Parts Melted 22 | . . . . . . . . 1 . . . . . . . . 3 . . 4 . 2 . . 5 7 Heat Transferred 10995 | 296 148 . 124 . . 111 . 2331 500 . . . . 370 . . 518 1406 . 665 . 666 250 . 1739 1871 Parts Sabotaged . | . . . . . . . . . . . . . . . . . . . . . . . . . . . Parts Stolen . | . . . . . . . . . . . . . . . . . . . . . . . . . . . Parts Stripped . | . . . . . . . . . . . . . . . . . . . . . . . . . . . Power Chain Reactions . | . . . . . . . . . . . . . . . . . . . . . . . . . . . Alert | -11 -10 -10 -9 -9 -8 -8 -8 -8 -8 -8 -7 -7 -7 -7 -6 -6 -6 -6 -5 -5 -5 -5 -4 -4 -4 -4 ------- Run | Yrd Mat Min Mat Min Mat Gar Mat Gar Mat Gar Fac Gar Fac Gar Fac Was Fac Gar Fac Gar Fac Gar Fac Was Fac Gar Maximum Alert Level 5 | . . . 2 . . 4 2 4 3 4 3 5 5 5 4 2 . 5 3 5 4 5 5 4 3 5 Low Security (%) 24 | 100 100 100 71 100 100 9 . . . . . . . . . . 100 11 . . . . . . . . Level 1 3 | . . . 25 . . 6 . 1 2 . . . . . . 52 . 18 . . . . . . . . Level 2 10 | . . . 2 . . 27 100 9 50 10 . 6 . . . 47 . 13 . 7 . . . . 73 17 Level 3 15 | . . . . . . 37 . 43 47 51 100 15 . . . . . 32 100 11 . 3 . . 26 22 Level 4 16 | . . . . . . 19 . 46 . 38 . 13 69 19 100 . . 11 . 20 100 9 . 100 . 40 Level 5 29 | . . . . . . . . . . . . 64 30 80 . . . 12 . 60 . 86 98 . . 18 High Security . | . . . . . . . . . . . . . . . . . . . . . . . 1 . . . Max Security . | . . . . . . . . . . . . . . . . . . . . . . . . . . . Peak Influence 4923 | 5 159 61 438 74 196 1307 643 1339 975 1585 922 2789 2004 2494 1343 445 192 1834 1068 2662 1401 4923 3625 1262 813 2333 Initial 2584 | . 3 61 . 74 . 48 637 386 652 614 831 638 1463 1397 1309 445 192 53 962 693 1397 938 2584 1262 813 539 Average 1198 | 1 16 5 161 7 106 788 614 1029 669 1038 856 1718 1549 2034 1307 363 18 797 980 1714 1376 3029 2848 1214 589 1162 Influence Increases 25599 | 25 487 70 1177 25 412 1339 168 963 1294 1121 281 2441 1175 1197 84 . 398 1931 219 2089 64 4175 1463 . 717 2284 Destroy 0b10 Robot/C 10220 | . 240 40 700 20 200 680 100 580 820 500 120 560 760 740 40 . 220 680 100 700 20 880 560 . 340 620 Destroy 0b10 Robot/NC 585 | 25 30 20 105 5 45 10 5 15 55 5 5 . 30 30 . . 10 35 10 . . 5 30 . 75 35 Destroy Leader 1398 | . 80 10 202 . 40 40 40 50 170 40 20 40 152 70 10 . 60 40 24 40 . 70 60 . 80 60 Allied During Kill 1777 | . . . 17 . . 77 18 68 7 22 20 208 172 43 18 . 9 70 53 167 13 345 434 . 4 12 Successful Hack 252 | . 31 . 12 . 18 35 . 28 . 14 40 . . 21 . . 25 14 . . . . . . . 14 Select Force Hacks 120 | . 60 . 60 . . . . . . . . . . . . . . . . . . . . . . . Disable Machine 750 | . 30 . 75 . 15 15 . . 45 15 15 90 30 . 15 . 60 45 . 15 15 45 165 . 45 15 Anti-Garrison Action 8350 | . . . . . . 300 . 200 . 450 . 1450 . 250 . . . 950 . 1000 . 2550 . . . 1200 Destroy Structure 1592 | . 1 . 6 . 4 77 5 22 92 . 1 48 16 43 1 . 14 82 32 167 16 280 214 . 158 313 Partial Spotted 45 | . . . . . . . . . . . 45 . . . . . . . . . . . . . . . Lose Combat Pursuer 510 | . 15 . . . 90 105 . . 105 75 15 45 15 . . . . 15 . . . . . . 15 15 Influence Decreases 23306 | 20 333 229 986 216 337 107 880 219 1688 481 954 564 1968 699 1305 998 597 173 1062 418 1385 593 2779 2445 1109 761 Entered New Map 15315 | . 2 98 . 117 . 27 670 209 687 331 754 274 1326 599 1185 828 83 23 872 298 1265 403 2339 2345 349 231 Time Decay 4374 | 20 331 111 646 99 337 . 180 . 446 . 100 . 502 . 100 100 352 . 70 . 120 . 270 100 490 . Lost Part 660 | . . 20 . . . 40 10 10 80 130 . 10 . 40 . . . 10 . 20 . 20 . . 50 220 Lost Ally 1782 | . . . 40 . . 40 20 . 50 20 100 130 140 60 20 70 12 140 120 100 . 170 170 . 70 310 Purge Threat 1175 | . . . 300 . . . . . 425 . . 150 . . . . 150 . . . . . . . 150 . Squads Dispatched 41 | . 4 1 5 . 1 . . . 7 . 2 . 9 . 1 . 3 . 1 . . . 4 . 3 . Investigation 7 | . 3 1 2 . . . . . . . 1 . . . . . . . . . . . . . . . Extermination 6 | . . . . . . . . . . . . . 2 . . . 2 . . . . . . . 2 . Reinforcement 14 | . 1 . 3 . 1 . . . 4 . . . 1 . 1 . 1 . 1 . . . 1 . . . Assault 11 | . . . . . . . . . 2 . . . 5 . . . . . . . . . 3 . 1 . Garrison 3 | . . . . . . . . . 1 . 1 . 1 . . . . . . . . . . . . . Intercept . | . . . . . . . . . . . . . . . . . . . . . . . . . . . Searches Triggered . | . . . . . . . . . . . . . . . . . . . . . . . . . . . Construction Impeded 3 | . . . . . 1 . . . . . . . . . . . . . 1 . . . 1 . . . Haulers Reinforced 2 | . . . . . . . . . . . . . 1 . . . 1 . . . . . . . . . Active Scanning Responses . | . . . . . . . . . . . . . . . . . . . . . . . . . . . Cargo Convoy Interrupts . | . . . . . . . . . . . . . . . . . . . . . . . . . . . Alert ID Control Effect 13 | . . . . . . . . . . . . . . . . . . . . . . 4 4 . . 5 Stealth | -11 -10 -10 -9 -9 -8 -8 -8 -8 -8 -8 -7 -7 -7 -7 -6 -6 -6 -6 -5 -5 -5 -5 -4 -4 -4 -4 --------- Run | Yrd Mat Min Mat Min Mat Gar Mat Gar Mat Gar Fac Gar Fac Gar Fac Was Fac Gar Fac Gar Fac Gar Fac Was Fac Gar Distress Signals 24 | . 1 . 3 . 2 1 . . 6 . . . 1 . 1 . 1 . 1 . . 3 2 . 1 1 Communications Jammed 142 | . . . . . . . . . . . . . . . . . . . . 5 . . 96 . 38 3 Distress Signals 141 | . . . . . . . . . . . . . . . . . . . . 5 . . 95 . 38 3 Times Spotted 672 | . 28 2 42 1 15 37 5 29 53 29 7 48 60 38 4 5 20 39 8 37 . 54 27 5 24 55 Peak Tracking Total 10 | . 6 2 6 1 3 7 2 5 6 5 4 6 7 6 2 3 3 6 4 6 . 10 10 3 5 10 Tactical Retreats 24 | . 1 . . . 4 4 . . 4 3 1 2 1 . . 1 . 1 . . . . . . 1 1 Traps | -11 -10 -10 -9 -9 -8 -8 -8 -8 -8 -8 -7 -7 -7 -7 -6 -6 -6 -6 -5 -5 -5 -5 -4 -4 -4 -4 ------- Run | Yrd Mat Min Mat Min Mat Gar Mat Gar Mat Gar Fac Gar Fac Gar Fac Was Fac Gar Fac Gar Fac Gar Fac Was Fac Gar Traps Triggered 81 | . 1 . . . 2 12 . 6 4 3 . 16 . 8 1 . . 7 . 4 . 5 1 . 1 10 Indirectly . | . . . . . . . . . . . . . . . . . . . . . . . . . . . Trap Hack Attempts . | . . . . . . . . . . . . . . . . . . . . . . . . . . . Triggered . | . . . . . . . . . . . . . . . . . . . . . . . . . . . Disarmed . | . . . . . . . . . . . . . . . . . . . . . . . . . . . Reprogrammed . | . . . . . . . . . . . . . . . . . . . . . . . . . . . Reused . | . . . . . . . . . . . . . . . . . . . . . . . . . . . Traps Extracted . | . . . . . . . . . . . . . . . . . . . . . . . . . . . Installed . | . . . . . . . . . . . . . . . . . . . . . . . . . . . Triggered . | . . . . . . . . . . . . . . . . . . . . . . . . . . . Machines | -11 -10 -10 -9 -9 -8 -8 -8 -8 -8 -8 -7 -7 -7 -7 -6 -6 -6 -6 -5 -5 -5 -5 -4 -4 -4 -4 ---------- Run | Yrd Mat Min Mat Min Mat Gar Mat Gar Mat Gar Fac Gar Fac Gar Fac Was Fac Gar Fac Gar Fac Gar Fac Was Fac Gar Machines Disabled 104 | . 2 . 5 . 1 5 . 1 3 6 1 13 2 3 1 . 4 8 . 9 1 15 11 . 3 10 Max in Single Turn 4 | . 1 . 1 . 1 1 . 1 1 1 . 1 1 1 . . 1 1 . 2 1 1 4 . 2 2 Garrison Access 2 | . . . . . . . . . . . . . . . 1 . . . . . . . 1 . . . Garrison Relay 41 | . . . . . . 4 . 1 . 5 . 7 . 3 . . . 4 . 4 . 5 . . . 8 Machines Repaired . | . . . . . . . . . . . . . . . . . . . . . . . . . . . Machines Dismantled 9 | . . . . . . 1 . . . 1 . 1 . 1 . . 2 . . 1 1 1 . . . . Machines Sabotaged . | . . . . . . . . . . . . . . . . . . . . . . . . . . . Overloaded Fab Kills . | . . . . . . . . . . . . . . . . . . . . . . . . . . . Hacking | -11 -10 -10 -9 -9 -8 -8 -8 -8 -8 -8 -7 -7 -7 -7 -6 -6 -6 -6 -5 -5 -5 -5 -4 -4 -4 -4 --------- Run | Yrd Mat Min Mat Min Mat Gar Mat Gar Mat Gar Fac Gar Fac Gar Fac Was Fac Gar Fac Gar Fac Gar Fac Was Fac Gar Machines Accessed 92 | . 10 1 14 . 4 4 2 3 5 5 7 1 4 3 2 . 10 2 1 2 3 2 1 . 4 2 Terminals 56 | . 7 . 8 . 2 4 1 3 3 5 3 1 1 3 . . 4 2 . 2 1 2 . . 2 2 Fabricators 2 | . . . . . . . . . . . . . . . 1 . . . . . 1 . . . . . Repair Stations 9 | . 1 . 2 . 1 . . . 1 . 1 . 2 . . . 1 . . . . . . . . . Recycling Units 6 | . 2 . 2 . . . . . . . . . . . . . 2 . . . . . . . . . Scanalyzers 7 | . . . 2 . . . . . . . 2 . . . . . 2 . . . . . . . 1 . Garrison Access 11 | . . . . . 1 . 1 . 1 . 1 . 1 . 1 . 1 . 1 . 1 . 1 . 1 . Total Hacks 192 | . 33 1 40 . 9 4 2 5 10 10 13 1 4 7 3 . 21 4 1 2 6 5 1 . 6 4 Successful 81 | . 12 1 21 . 8 3 1 2 3 1 6 . 2 2 1 . 10 1 1 . 1 1 1 . 2 1 Failed 110 | . 20 . 19 . 1 1 1 3 7 9 7 1 2 5 2 . 11 3 . 2 5 4 . . 4 3 Catastrophic 29 | . 4 . 4 . . 1 1 1 1 2 2 . 1 1 1 . 5 1 . . 1 . . . 2 1 Database Lockouts 1 | . 1 . . . . . . . . . . . . . . . . . . . . . . . . . Manual 65 | . 31 . 8 2 . . 1 2 7 . 1 . 2 . 1 . 8 . . . 2 . . . . . Terminals 127 | . 29 . 22 . 6 4 1 5 6 10 7 1 1 7 . . 7 4 . 2 2 5 . . 4 4 Fabricators 4 | . . . . . . . . . . . . . . . 1 . . . . . 3 . . . . . Repair Stations 17 | . 1 . 7 . 2 . . . 3 . 1 . 2 . . . 1 . . . . . . . . . Recycling Units 10 | . 3 . 2 . . . . . . . . . . . . . 5 . . . . . . . . . Scanalyzers 20 | . . . 9 . . . . . . . 4 . . . . . 6 . . . . . . . 1 . Garrison Access 13 | . . . . . 1 . 1 . 1 . 1 . 1 . 2 . 2 . 1 . 1 . 1 . 1 . Terminal Hacks 34 | . 4 1 7 . 5 3 . 2 1 1 1 . . 2 . . 3 1 . . . 1 . . 1 1 Part Schematic 2 | . 2 . . . . . . . . . . . . . . . . . . . . . . . . . Robot Schematic 1 | . 1 . . . . . . . . . . . . . . . . . . . . . . . . . Prototype ID Bank 2 | . . . 1 . 1 . . . . . . . . . . . . . . . . . . . . . Open Door 3 | . . 1 . . . 1 . . . . . . . 1 . . . . . . . . . . . . Branch Access Points 1 | . . . 1 . . . . . . . . . . . . . . . . . . . . . . . Emergency Access Points 4 | . . . . . . 1 . . . . 1 . . . . . 1 . . . . 1 . . . . Terminal Index 1 | . . . . . 1 . . . . . . . . . . . . . . . . . . . . . Alert Level 1 | . . . 1 . . . . . . . . . . . . . . . . . . . . . . . Unreport Threat 5 | . . . 2 . . . . . 1 . . . . . . . 1 . . . . . . . 1 . Locate Traps 3 | . . . 1 . 1 . . . . . . . . . . . 1 . . . . . . . . . Hauler Manifests 4 | . 1 . 1 . 2 . . . . . . . . . . . . . . . . . . . . . Garrison Registry 3 | . . . . . . . . 1 . . . . . . . . . 1 . . . . . . . 1 Patrol Navigation 3 | . . . . . . 1 . . . 1 . . . 1 . . . . . . . . . . . . Security Stations 1 | . . . . . . . . 1 . . . . . . . . . . . . . . . . . . Fabricator Hacks . | . . . . . . . . . . . . . . . . . . . . . . . . . . . Repair Station Hacks 8 | . . . 6 . 2 . . . . . . . . . . . . . . . . . . . . . Scan Component 4 | . . . 3 . 1 . . . . . . . . . . . . . . . . . . . . . Repair 4 | . . . 3 . 1 . . . . . . . . . . . . . . . . . . . . . Recycling Unit Hacks . | . . . . . . . . . . . . . . . . . . . . . . . . . . . Scanalyzer 14 | . . . 6 . . . . . . . 4 . . . . . 4 . . . . . . . . . Insert Component 7 | . . . 3 . . . . . . . 2 . . . . . 2 . . . . . . . . . Analyze 7 | . . . 3 . . . . . . . 2 . . . . . 2 . . . . . . . . . Garrison Access Hacks 11 | . . . . . 1 . 1 . 1 . 1 . 1 . 1 . 1 . 1 . 1 . 1 . 1 . Unlock Access 9 | . . . . . 1 . 1 . 1 . 1 . 1 . . . 1 . 1 . 1 . . . 1 . Seal Access 2 | . . . . . . . . . . . . . . . 1 . . . . . . . 1 . . . Unauthorized Hacks 14 | . 8 . 2 . . . . . 1 . . . 1 . . . 2 . . . . . . . . . Terminals 6 | . 6 . . . . . . . . . . . . . . . . . . . . . . . . . Skim 6 | . 6 . . . . . . . . . . . . . . . . . . . . . . . . . Fabricators . | . . . . . . . . . . . . . . . . . . . . . . . . . . . Repair Stations 3 | . . . . . . . . . 1 . . . 1 . . . 1 . . . . . . . . . Mechanics 3 | . . . . . . . . . 1 . . . 1 . . . 1 . . . . . . . . . Recycling Units 5 | . 2 . 2 . . . . . . . . . . . . . 1 . . . . . . . . . Reject 1 | . . . . . . . . . . . . . . . . . 1 . . . . . . . . . Tunnel 4 | . 2 . 2 . . . . . . . . . . . . . . . . . . . . . . . Scanalyzers . | . . . . . . . . . . . . . . . . . . . . . . . . . . . Garrison Access . | . . . . . . . . . . . . . . . . . . . . . . . . . . . Data Cores Recovered 1 | . . . . . . . 1 . . . . . . . . . . . . . . . . . . . Used . | . . . . . . . . . . . . . . . . . . . . . . . . . . . Hacking Detections 74 | . 8 . 12 1 4 2 1 2 3 5 5 1 4 2 2 . 9 2 . 2 3 1 . . 4 1 Full Trace Events 4 | . 1 . . . . . . 1 . . . . . . . . . 1 . . . . . . . 1 Feedback Events 1 | . . . . . . . . 1 . . . . . . . . . . . . . . . . . . Hackware Fried 1 | . . . . . . . . 1 . . . . . . . . . . . . . . . . . . Feedback Blocked . | . . . . . . . . . . . . . . . . . . . . . . . . . . . Robot Schematics Acquired 1 | . 1 . . . . . . . . . . . . . . . . . . . . . . . . . Robots Built . | . . . . . . . . . . . . . . . . . . . . . . . . . . . Authchips . | . . . . . . . . . . . . . . . . . . . . . . . . . . . Time . | . . . . . . . . . . . . . . . . . . . . . . . . . . . Total Robot Build Rating . | . . . . . . . . . . . . . . . . . . . . . . . . . . . Part Schematics Acquired 9 | . 2 . 3 . . . . . . . 2 . . . . . 2 . . . . . . . . . Parts Built . | . . . . . . . . . . . . . . . . . . . . . . . . . . . Authchips . | . . . . . . . . . . . . . . . . . . . . . . . . . . . Time . | . . . . . . . . . . . . . . . . . . . . . . . . . . . Total Part Build Rating . | . . . . . . . . . . . . . . . . . . . . . . . . . . . Parts Repaired 4 | . . . 3 . 1 . . . . . . . . . . . . . . . . . . . . . Time 166 | . . . 115 . 51 . . . . . . . . . . . . . . . . . . . . . Parts Recycled . | . . . . . . . . . . . . . . . . . . . . . . . . . . . Recycled Matter . | . . . . . . . . . . . . . . . . . . . . . . . . . . . Retrieved Matter . | . . . . . . . . . . . . . . . . . . . . . . . . . . . Retrieved Components . | . . . . . . . . . . . . . . . . . . . . . . . . . . . Parts Scanalyzed 7 | . . . 3 . . . . . . . 2 . . . . . 2 . . . . . . . . . Part Schematics Acquired 7 | . . . 3 . . . . . . . 2 . . . . . 2 . . . . . . . . . Parts Damaged 1 | . . . . . . . . . . . . . . . . . 1 . . . . . . . . . Bothacking | -11 -10 -10 -9 -9 -8 -8 -8 -8 -8 -8 -7 -7 -7 -7 -6 -6 -6 -6 -5 -5 -5 -5 -4 -4 -4 -4 ------------ Run | Yrd Mat Min Mat Min Mat Gar Mat Gar Mat Gar Fac Gar Fac Gar Fac Was Fac Gar Fac Gar Fac Gar Fac Was Fac Gar Used RIF Installer 11 | . . . . . . 2 . 2 . 1 . 1 . 1 . . . 1 . 1 . 1 . . . 1 Code Merge 1 | . . . . . . . . . . . . . . . . . . . . . . . . . . 1 Command Fork 1 | . . . . . . . . . . 1 . . . . . . . . . . . . . . . . Signal Jammer 1 | . . . . . . . . . . . . . . . . . . . . 1 . . . . . . Zone Cloak 1 | . . . . . . . . 1 . . . . . . . . . . . . . . . . . . Robot Detection 1 | . . . . . . . . . . . . 1 . . . . . . . . . . . . . . Patrol Navigation 1 | . . . . . . 1 . . . . . . . . . . . . . . . . . . . . Alert ID Control 1 | . . . . . . . . . . . . . . . . . . . . . . 1 . . . . Structural Interface 1 | . . . . . . . . 1 . . . . . . . . . . . . . . . . . . Program Shield 1 | . . . . . . . . . . . . . . 1 . . . . . . . . . . . . Autooverride 1 | . . . . . . . . . . . . . . . . . . 1 . . . . . . . . Robots Hacked 168 | . . . . . . 1 2 . 6 3 4 26 . 3 4 7 16 7 8 15 1 17 14 5 10 19 Non-combat 52 | . . . . . . . 2 . 6 . 2 1 . . 4 . 15 . 3 1 . . 7 . 10 1 Combat 116 | . . . . . . 1 . . . 3 2 25 . 3 . 7 1 7 5 14 1 17 7 5 . 18 Autooverrided 12 | . . . . . . . . . . . . . . . . . . . . 1 1 5 2 . . 3 Robot Hacks Applied 179 | . . . . . . 1 6 . 10 3 5 29 . 3 4 7 24 7 8 14 . 12 12 5 11 18 parse_system 13 | . . . . . . 1 1 . 2 . . 2 . . . . 4 . . . . . . . 2 1 generate_echo 1 | . . . . . . . . . . . . . . . . . . . 1 . . . . . . . find_chute 3 | . . . . . . . . . . . . . . . 1 . . . . . . . 2 . . . ignore_repairs 4 | . . . . . . . . . . . . . . . . . 4 . . . . . . . . . map_walls 1 | . . . . . . . . . . . . . . . . . . . . . . . . . 1 . drop_inventory 5 | . . . . . . . 2 . 1 . 1 . . . . . 1 . . . . . . . . . locate_stockpiles 1 | . . . . . . . 1 . . . . . . . . . . . . . . . . . . . ignore_parts 1 | . . . . . . . . . . . . . . . 1 . . . . . . . . . . . purge_threat 3 | . . . . . . . . . 2 . . 1 . . . . . . . . . . . . . . block_reporting 1 | . . . . . . . . . . . . . . . . . 1 . . . . . . . . . map_route 3 | . . . . . . . . . . . . . . . . . 2 . . . . . . . 1 . redirect_shields 1 | . . . . . . . . . . . . . . . . . . . . . . . 1 . . . ignore_targets 11 | . . . . . . . . . . . . . . . . 6 . . . . . . . 5 . . find_shortcuts 1 | . . . . . . . . . . . . 1 . . . . . . . . . . . . . . link_fov 1 | . . . . . . . . . . . . . . . . . 1 . . . . . . . . . amplify_resonance 19 | . . . . . . . . . . . 1 9 . . . . . 1 1 1 . 2 1 . . 3 disable_weapons 1 | . . . . . . . . . . . . . . . . . . . . . . 1 . . . . reboot_system 12 | . . . . . . . . . . . . 3 . . . . 1 1 1 1 . 3 2 . . . overwrite_iff 25 | . . . . . . . . . . 1 . 3 . . . . . 3 2 8 . 3 2 . . 3 formatsys_low 35 | . . . . . . . 2 . 5 . 2 1 . . 1 1 10 . 2 . . . 4 . 7 . formatsys_high 37 | . . . . . . . . . . 2 1 9 . 3 1 . . 2 1 4 . 3 . . . 11 Relay Couplers Released 175 | . . . . . . 21 . 4 . 20 . 31 4 12 . . . 18 . 17 . 19 . . . 29 Machine Destruction 167 | . . . . . . 17 . 4 . 20 . 31 . 12 . . . 18 . 17 . 19 . . . 29 Programmers 8 | . . . . . . 4 . . . . . . 4 . . . . . . . . . . . . . Attached 67 | . . . . . . . 2 . 2 3 1 11 . 2 1 1 4 5 2 8 1 8 1 1 3 11 Fabnet Peak Effective % . | . . . . . . . . . . . . . . . . . . . . . . . . . . . Robots Rewired 27 | . . . . . . . . . . 3 . 3 . 4 1 . . 7 . 2 . 7 . . . . Allies Hacked 4 | . . . . . . . . . . . . . . . . . 1 . . . . . . . 3 . Hacks Repelled . | . . . . . . . . . . . . . . . . . . . . . . . . . . . Allies | -11 -10 -10 -9 -9 -8 -8 -8 -8 -8 -8 -7 -7 -7 -7 -6 -6 -6 -6 -5 -5 -5 -5 -4 -4 -4 -4 -------- Run | Yrd Mat Min Mat Min Mat Gar Mat Gar Mat Gar Fac Gar Fac Gar Fac Was Fac Gar Fac Gar Fac Gar Fac Was Fac Gar Total Allies 158 | . . 2 . . . 3 2 . 5 6 4 18 . 9 4 2 9 12 7 17 1 21 8 . 10 18 Largest Group 17 | . . 2 2 . . 3 3 1 2 6 7 15 12 4 6 7 9 12 13 15 15 17 15 4 7 4 Highest-Rated Group 777 | . . 42 42 . . 211 169 149 173 117 127 427 322 194 241 250 176 428 358 623 645 777 729 135 126 161 Highest-Rated Ally 149 | . . 31 31 . . 149 149 149 149 39 39 43 38 80 80 80 26 148 85 116 116 148 148 49 32 63 Total Orders 381 | . . . . . . . . . 22 55 5 68 7 . 1 . 14 31 . 60 1 109 1 . 3 4 STAY 200 | . . . . . . . . . 6 34 . 34 4 . . . 8 15 . 31 1 64 . . . 3 ROAM 2 | . . . . . . . . . . . . . . . . . 2 . . . . . . . . . FOLLOW 99 | . . . . . . . . . 7 6 2 24 3 . . . 3 7 . 16 . 31 . . . . GUARD 2 | . . . . . . . . . . . . . . . . . . . . 2 . . . . . . AID 23 | . . . . . . . . . 4 . . 4 . . 1 . 1 4 . 4 . 2 1 . 2 . DROP 14 | . . . . . . . . . 1 2 1 2 . . . . . 1 . 2 . 3 . . 1 1 PICKUP 34 | . . . . . . . . . 4 13 1 4 . . . . . 1 . 4 . 7 . . . . COLLECT 7 | . . . . . . . . . . . 1 . . . . . . 3 . 1 . 2 . . . . Ally Attacks 813 | . . . 10 . . 58 7 31 5 12 28 118 49 22 7 23 . 45 26 48 1 116 137 24 . 46 Total Damage 26556 | . . . 210 . . 1541 275 1408 230 152 440 3302 1507 674 280 1147 . 1420 728 1324 22 3831 5811 973 . 1281 Kills 181 | . . . 3 . . 14 4 17 2 3 6 20 17 10 2 3 . 8 7 4 1 21 33 1 . 5 Allies Corrupted 2 | . . . . . . . . . . . . . . . . . . . . . . 1 . 1 . . Allies Melted . | . . . . . . . . . . . . . . . . . . . . . . . . . . . Intel | -11 -10 -10 -9 -9 -8 -8 -8 -8 -8 -8 -7 -7 -7 -7 -6 -6 -6 -6 -5 -5 -5 -5 -4 -4 -4 -4 ------- Run | Yrd Mat Min Mat Min Mat Gar Mat Gar Mat Gar Fac Gar Fac Gar Fac Was Fac Gar Fac Gar Fac Gar Fac Was Fac Gar Active Infowar (turns) 14338 | 80 2352 1099 272 . . 234 . . . . 75 . . . . . 693 2773 158 2990 241 3371 . . . . Optics 10301 | . . . . . . . . . . . 75 . . . . . 693 2773 158 2990 241 3371 . . . . Seismic 4037 | 80 2352 1099 272 . . 234 . . . . . . . . . . . . . . . . . . . . Robot Analysis Total . | . . . . . . . . . . . . . . . . . . . . . . . . . . . Derelict Logs Recovered 4 | . . 2 . 2 . . . . . . . . . . . . . . . . . . . . . . Drone Launches . | . . . . . . . . . . . . . . . . . . . . . . . . . . . Drone Recoveries . | . . . . . . . . . . . . . . . . . . . . . . . . . . . Exploration | -11 -10 -10 -9 -9 -8 -8 -8 -8 -8 -8 -7 -7 -7 -7 -6 -6 -6 -6 -5 -5 -5 -5 -4 -4 -4 -4 ------------- Run | Yrd Mat Min Mat Min Mat Gar Mat Gar Mat Gar Fac Gar Fac Gar Fac Was Fac Gar Fac Gar Fac Gar Fac Was Fac Gar Turns Passed 39948 | 205 2352 1099 3059 901 931 1365 364 1346 1104 2084 211 3339 1349 1715 205 206 1695 2773 158 2990 241 5225 592 209 1280 2950 Spaces Moved 23817 | 109 1088 625 1608 615 432 850 281 800 540 1864 556 4404 694 789 106 73 759 1439 101 1687 130 2540 214 69 455 989 Core 27 | 6 . . . . . . . . . . . . . . . . . . . . . . . . . 21 Treads 12163 | 103 1088 625 1608 615 138 . . . 1 . . 490 28 166 106 73 759 847 . 1456 130 2540 214 69 309 798 Legs . | . . . . . . . . . . . . . . . . . . . . . . . . . . . Wheels 6056 | . . . . . 294 850 281 800 539 763 . . 666 623 . . . 592 101 231 . . . . 146 170 Hover . | . . . . . . . . . . . . . . . . . . . . . . . . . . . Flight 5571 | . . . . . . . . . . 1101 556 3914 . . . . . . . . . . . . . . Fastest Speed 26 | 50 160 160 145 145 105 105 105 120 105 29 26 26 160 145 165 165 165 123 123 123 152 152 237 237 205 50 Average Speed 130 | 153 160 160 154 145 157 109 108 120 111 74 26 49 163 159 165 165 165 153 123 148 152 180 237 237 226 239 Slowest Speed 320 | 160 160 160 240 145 225 120 120 120 320 170 26 250 250 165 165 165 165 245 123 152 152 237 237 237 237 320 Overloaded Moves . | . . . . . . . . . . . . . . . . . . . . . . . . . . . Propulsion Burnouts . | . . . . . . . . . . . . . . . . . . . . . . . . . . . Robots Hopped . | . . . . . . . . . . . . . . . . . . . . . . . . . . . Potential Cave-ins 3 | . . . . . . . . . . . . . . . . . . . . . . 3 . . . . Cave-ins Triggered . | . . . . . . . . . . . . . . . . . . . . . . . . . . . Exploration Rate (%) 56 | 6 96 98 96 99 30 94 24 86 38 97 10 99 21 94 4 69 13 75 6 97 6 94 11 64 14 96 Regions Visited 26 Branch Regions 2 Pre-discovered Areas 5 | . 2 1 2 . . . . . . . . . . . . . . . . . . . . . . . Known Exits Taken 11 | . . 1 1 . 1 . 1 . 1 . 1 . 1 . . . 1 . 1 . 1 . . . 1 . Unknown Exits Taken 3 | 1 1 . . 1 . . . . . . . . . . . . . . . . . . . . . . Scrap Searched 3 | . . 1 . 2 . . . . . . . . . . . . . . . . . . . . . . Spaces Dug 162 | . . . 1 . . 1 . . . . 1 9 . 20 . . 8 47 . 20 . 12 3 . 1 39 Terrain Destroyed 708 | . . . 1 . . 1 . . 90 . 1 32 24 25 . . 15 78 . 47 . 46 39 . 100 209 Melee 73 | . . . 1 . . 1 . . . . 1 9 . 20 . . 7 . . 4 . 9 2 . 1 18 Projectile 193 | . . . . . . . . . 13 . . 2 23 5 . . 8 10 . 23 . 34 10 . 35 30 AOE 441 | . . . . . . . . . 77 . . 21 . . . . . 68 . 20 . 3 27 . 64 161 Terrain Rammed . | . . . . . . . . . . . . . . . . . . . . . . . . . . . Walls Destroyed . | . . . . . . . . . . . . . . . . . . . . . . . . . . . Machines Disabled . | . . . . . . . . . . . . . . . . . . . . . . . . . . . Actions | -11 -10 -10 -9 -9 -8 -8 -8 -8 -8 -8 -7 -7 -7 -7 -6 -6 -6 -6 -5 -5 -5 -5 -4 -4 -4 -4 --------- Run | Yrd Mat Min Mat Min Mat Gar Mat Gar Mat Gar Fac Gar Fac Gar Fac Was Fac Gar Fac Gar Fac Gar Fac Was Fac Gar Total 30226 | 130 1608 698 1977 619 619 1119 326 982 850 2431 612 5503 798 1062 133 157 1107 1822 127 2051 165 3006 262 113 582 1367 Wait 2824 | . 413 45 187 2 118 96 15 35 142 330 27 470 23 31 6 73 192 116 10 157 26 236 4 36 10 24 Move 23796 | 108 1087 624 1607 614 432 849 280 799 539 1862 556 4403 694 788 106 72 758 1438 100 1686 129 2539 214 68 455 989 Hop . | . . . . . . . . . . . . . . . . . . . . . . . . . . . Pick Up 360 | 8 22 6 23 . 14 8 4 5 16 13 3 97 4 13 3 1 7 17 . 25 . 30 2 . 11 28 Fast Attach 146 | 7 . 1 8 . 5 3 . 2 11 5 3 10 1 5 2 . 13 17 1 11 . 12 . . 2 27 Attach 122 | . 2 4 1 . 4 5 2 . 10 12 1 8 5 6 2 1 2 6 1 6 . 9 2 1 6 26 Detach 23 | . . . . . . . . . . 2 . 2 1 . . . 1 6 . 1 . . . . . 10 Swap 319 | . 9 1 21 . 3 27 8 5 25 11 3 17 3 9 2 . 22 26 2 28 3 27 7 2 28 30 Drop 358 | . 21 3 34 . 16 8 3 5 5 19 4 81 6 13 3 . 19 24 . 24 . 31 1 . 3 35 Fire 1320 | 7 51 14 92 2 27 49 14 97 102 53 9 90 53 69 8 10 72 110 13 67 . 97 30 6 63 115 Melee 263 | . . . 1 . . 18 . 2 . 46 6 28 . 53 1 . 9 32 . 5 . 13 2 . 3 44 Ram 11 | . . . . . . . . . . 2 . . 8 . . . . . . . . . . . 1 . Kick . | . . . . . . . . . . . . . . . . . . . . . . . . . . . Crush 7 | . 3 . 3 1 . . . . . . . . . . . . . . . . . . . . . . Escape Stasis 556 | . . . . . . 48 . 32 . 54 . 289 . 44 . . . 30 . 16 . 4 . . . 39 Rewire 55 | . . . . . . . . . . 10 . . . 28 . . . . . 17 . . . . . . Trap . | . . . . . . . . . . . . . . . . . . . . . . . . . . . Miscellaneous 66 | . . . . . . 8 . . . 12 . 8 . 3 . . 12 . . 8 7 8 . . . . Route ------- -11/Scrapyard -10/Materials (discovered 4 exits: *Mat x3 / *Min) -10/Mines (discovered 3 exits: *Mat x2 / [*Exi]) -9/Materials (discovered 5 exits: *Mat x3 / *Min x2) -9/Mines (discovered 2 exits: *Mat x2) -8/Materials -8/Garrison (discovered 3 exits: *Mat x3) -8/Materials -8/Garrison (discovered 4 exits: *Fac x3 / *Mat) -8/Materials (discovered 2 exits: *Fac / Gar) -8/Garrison (discovered 3 exits: *Fac x3) -7/Factory -7/Garrison (discovered 4 exits: *Fac x3 / *Fac) -7/Factory -7/Garrison (discovered 3 exits: *Fac x3) -6/Factory -6/Waste -6/Factory (discovered 2 exits: *Fac / Gar) -6/Garrison (discovered 3 exits: *Fac x3) -5/Factory (discovered 2 exits: [*Upp] / Gar) -5/Garrison (discovered 3 exits: *Fac x3) -5/Factory -5/Garrison (discovered 3 exits: *Fac x3) -4/Factory -4/Waste -4/Factory (discovered 2 exits: [*Upp] / Gar) -4/Garrison (discovered 3 exits: [*Fac x3]) History --------- Turn | Location | Event 4 | -11/Scrapyard | Discovered new exit (range 16) 206 | -11/Scrapyard | Entered Materials 322 | -10/Materials | Build established: Mutant 595 | -10/Materials | Discovered new exit (range 13) 925 | -10/Materials | Discovered new exit (range 9) 1062 | -10/Materials | Learned Storage stockpile data 1125 | -10/Materials | Loaded intel: 1 repair station location 1176 | -10/Materials | Learned 2 Storage zone layouts 1248 | -10/Materials | Learned 4 Subcaves zone layouts 1291 | -10/Materials | Learned location of 1 exit from Storage 1346 | -10/Materials | Identified exit to Materials 1615 | -10/Materials | Central database locked down 1702 | -10/Materials | Discovered exit to Materials (range 6) 2558 | -10/Materials | Entered Mines 2638 | -10/Mines | Discovered exit to Materials (range 11) 2693 | -10/Mines | Assembled infested the area 2713 | -10/Mines | Core integrity fell below 50% 2751 | -10/Mines | Lost 5 parts (1p1n3w) 2972 | -10/Mines | Discovered new exit (range 5) 3048 | -10/Mines | Met a Derelict shopkeep closing up shop 3122 | -10/Mines | Learned location of Zion (-6) 3355 | -10/Mines | Learned Materials trap positions 3373 | -10/Mines | Discovered exit to Materials (range 9) 3657 | -10/Mines | Entered Materials 3657 | -9/Materials | Accompanied by 2 allies 3657 | -9/Materials | Evolved 2 slots: Propulsion x1, Weapon x1 3658 | -9/Materials | Identified exit to Mines 3659 | -9/Materials | Loaded intel: 19 trap records 3662 | -9/Materials | Led the pair of lost Derelicts to an unsafe place 4029 | -9/Materials | Discovered new exit (range 13) 4357 | -9/Materials | Build established: Tank 4919 | -9/Materials | Discovered new exit (range 15) 5351 | -9/Materials | Discovered new exit (range 15) 5535 | -9/Materials | Repaired Med. Armor Plating 5676 | -9/Materials | Repaired Rnf. Ion Engine 5826 | -9/Materials | Destroyed 7 combat bots 6239 | -9/Materials | Repaired Imp. Assault Rifle 6716 | -9/Materials | Entered Mines 6759 | -9/Mines | Met a Derelict bent on vengeance 6841 | -9/Mines | Joined a pair of Derelicts in attacking an 0b10 outpost 7183 | -9/Mines | Learned Materials stockpile data 7257 | -9/Mines | A weapon hastily lodged in a ceiling crevice suddenly fell to the ground 7318 | -9/Mines | Learned Materials terminal intel 7330 | -9/Mines | Discovered new exit (range 5) 7412 | -9/Mines | Discovered new exit (range 8) 7434 | -9/Mines | Found a hidden stash of uninstalled traps 7617 | -9/Mines | Entered Materials 7617 | -8/Materials | Evolved 2 slots: Utility x1, Weapon x1 7619 | -8/Materials | Loaded intel: 12 terminal locations 8255 | -8/Materials | Repaired Imp. Assault Rifle 8548 | -8/Materials | Identified exit to Garrison 8548 | -8/Materials | Entered Garrison 8561 | -8/Garrison | Triggered checkpoint 8609 | -8/Garrison | Garrison Relay disabled 8839 | -8/Garrison | Discovered new exit (range 8) 8870 | -8/Garrison | Rescued a captive Derelict 8876 | -8/Garrison | Rescued a captive Derelict 8877 | -8/Garrison | Triggered checkpoint 8908 | -8/Garrison | Garrison Relay disabled 9052 | -8/Garrison | Triggered checkpoint 9135 | -8/Garrison | Garrison Relay disabled 9226 | -8/Garrison | Rescued HV-R5K 9243 | -8/Garrison | Discovered new exit (range 12) 9299 | -8/Garrison | Triggered checkpoint 9341 | -8/Garrison | Triggered checkpoint 9462 | -8/Garrison | Garrison Relay disabled 9474 | -8/Garrison | Triggered checkpoint 9546 | -8/Garrison | Installed Relay Interface Framework 9554 | -8/Garrison | Discovered new exit (range 14) 9679 | -8/Garrison | Expanded RIF knowledge: Patrol Navigation 9913 | -8/Garrison | Entered Materials 9913 | -8/Materials | Accompanied by 1 ally (HV-R5K) 10271 | -8/Materials | Identified exit to Garrison 10277 | -8/Materials | Entered Garrison 10277 | -8/Garrison | Accompanied by 1 ally (HV-R5K) 10292 | -8/Garrison | Triggered checkpoint 10320 | -8/Garrison | Discovered new exit (range 5) 10362 | -8/Garrison | Learned Factory security intel 10362 | -8/Garrison | Hacking Suite fried by hacking feedback 10419 | -8/Garrison | Garrison Relay disabled 10503 | -8/Garrison | Expanded RIF knowledge: Structural Interface 10821 | -8/Garrison | Triggered checkpoint 10867 | -8/Garrison | Triggered checkpoint 10921 | -8/Garrison | Discovered new exit (range 13) 10998 | -8/Garrison | Triggered checkpoint 11001 | -8/Garrison | Triggered checkpoint 11335 | -8/Garrison | Discovered new exit (range 11) 11355 | -8/Garrison | Discovered new exit (range 78) 11355 | -8/Garrison | Discovered new exit (range 56) 11355 | -8/Garrison | Discovered new exit (range 6) 11355 | -8/Garrison | Discovered new exit (range 64) 11480 | -8/Garrison | Expanded RIF knowledge: Zone Cloak 11623 | -8/Garrison | Entered Materials 11623 | -8/Materials | Accompanied by 1 ally (HV-R5K) 12023 | -8/Materials | First assault squad dispatched 12155 | -8/Materials | Destroyed 8 combat bots 12322 | -8/Materials | Build established: Gunner 12393 | -8/Materials | Lost 4 parts (2n2w) 12394 | -8/Materials | Core integrity fell below 50% 12492 | -8/Materials | Destroyed 10 combat bots 12501 | -8/Materials | Discovered new exit (range 11) 12669 | -8/Materials | Identified exit to Garrison 12677 | -8/Materials | Garrison activated, responded to threat 12727 | -8/Materials | Entered Garrison 12727 | -8/Garrison | Accompanied by 2 allies 12856 | -8/Garrison | Triggered checkpoint 12999 | -8/Garrison | Build established: Tank 13006 | -8/Garrison | Expanded RIF knowledge: Command Fork 13694 | -8/Garrison | Triggered checkpoint 13723 | -8/Garrison | Triggered checkpoint 13744 | -8/Garrison | System corruption reached 10% 13787 | -8/Garrison | Core integrity fell below 20% 13819 | -8/Garrison | Lost 6 parts (2n2u2w) 13937 | -8/Garrison | Triggered checkpoint 13962 | -8/Garrison | Garrison Relay disabled 14062 | -8/Garrison | Garrison Relay disabled 14080 | -8/Garrison | Triggered checkpoint 14149 | -8/Garrison | Discovered new exit (range 14) 14248 | -8/Garrison | Garrison Relay disabled 14260 | -8/Garrison | Discovered new exit (range 11) 14287 | -8/Garrison | Garrison Relay disabled 14293 | -8/Garrison | Triggered checkpoint 14389 | -8/Garrison | Triggered checkpoint 14453 | -8/Garrison | Build established: Commander-Sprinter 14470 | -8/Garrison | Discovered new exit (range 10) 14491 | -8/Garrison | Triggered checkpoint 14518 | -8/Garrison | Garrison Relay disabled 14811 | -8/Garrison | Entered Factory 14811 | -7/Factory | Accompanied by 6 allies 14811 | -7/Factory | Evolved 2 slots: Propulsion x1, Utility x1 14941 | -7/Factory | Lost 3 allies 14990 | -7/Factory | Garrison activated, responded to threat 15021 | -7/Factory | Identified exit to Garrison 15022 | -7/Factory | Entered Garrison 15022 | -7/Garrison | Accompanied by 4 allies 15027 | -7/Garrison | Lost 3 allies 15065 | -7/Garrison | Triggered checkpoint 15095 | -7/Garrison | Expanded RIF knowledge: Robot Detection 15097 | -7/Garrison | Garrison Relay disabled 15205 | -7/Garrison | Triggered checkpoint 15234 | -7/Garrison | Garrison Relay disabled 15265 | -7/Garrison | Rescued a captive Derelict 15267 | -7/Garrison | Rescued a captive Derelict 15427 | -7/Garrison | Triggered checkpoint 15499 | -7/Garrison | Spotted B-75 Beast 15580 | -7/Garrison | Build established: Bothacker-Sprinter 15606 | -7/Garrison | Triggered checkpoint 15640 | -7/Garrison | Discovered new exit (range 15) 15754 | -7/Garrison | Triggered checkpoint 15786 | -7/Garrison | Triggered checkpoint 15819 | -7/Garrison | Triggered checkpoint 15851 | -7/Garrison | Garrison Relay disabled 15856 | -7/Garrison | Discovered new exit (range 9) 15861 | -7/Garrison | Triggered checkpoint 15865 | -7/Garrison | Discovered new exit (range 5) 16066 | -7/Garrison | Triggered checkpoint 16136 | -7/Garrison | H-XX Assembler disabled 16158 | -7/Garrison | Garrison Relay disabled 16182 | -7/Garrison | Garrison Relay disabled 16264 | -7/Garrison | Triggered checkpoint 16274 | -7/Garrison | Garrison Relay disabled 16284 | -7/Garrison | Discovered new exit (range 4) 16367 | -7/Garrison | Triggered checkpoint 16457 | -7/Garrison | Build established: Commander-Sprinter 16808 | -7/Garrison | Spotted B-75 Beast 17207 | -7/Garrison | Spotted B-75 Beast 17218 | -7/Garrison | Allies destroyed B-75 Beast 17230 | -7/Garrison | Allies destroyed B-75 Beast 17430 | -7/Garrison | Allies destroyed B-75 Beast 17483 | -7/Garrison | Garrison Relay disabled 17518 | -7/Garrison | Build established: Commander-Tank 18240 | -7/Garrison | Build established: Commander-Gunner 18361 | -7/Garrison | Entered Factory 18361 | -7/Factory | Accompanied by 12 allies 18761 | -7/Factory | First assault squad dispatched 19071 | -7/Factory | Lost 3 allies 19161 | -7/Factory | Lost 4 allies 19614 | -7/Factory | Garrison activated, responded to threat 19690 | -7/Factory | Destroyed 9 combat bots 19710 | -7/Factory | Identified exit to Garrison 19710 | -7/Factory | Entered Garrison 19822 | -7/Garrison | Build established: Gunner 19933 | -7/Garrison | Garrison Relay disabled 19978 | -7/Garrison | Triggered checkpoint 20058 | -7/Garrison | Triggered checkpoint 20171 | -7/Garrison | Triggered checkpoint 20290 | -7/Garrison | Discovered new exit (range 13) 20348 | -7/Garrison | Triggered checkpoint 20389 | -7/Garrison | Garrison Relay disabled 20592 | -7/Garrison | Garrison Relay disabled 20602 | -7/Garrison | Triggered checkpoint 20643 | -7/Garrison | Expanded RIF knowledge: Program Shield 20659 | -7/Garrison | Build established: Botlord-Tank 20666 | -7/Garrison | Discovered new exit (range 2) 20860 | -7/Garrison | Triggered checkpoint 21177 | -7/Garrison | Discovered new exit (range 10) 21178 | -7/Garrison | Triggered checkpoint 21246 | -7/Garrison | Found embedded Infiltrators 21425 | -7/Garrison | Entered Factory 21425 | -6/Factory | Accompanied by 4 allies 21425 | -6/Factory | Evolved 2 slots: Utility x2 21630 | -6/Factory | Sucked down chute 21630 | -6/Factory | Entered Waste 21630 | -6/Waste | Met up with 1 ally sucked down the chute earlier 21645 | -6/Waste | EMP discharged 21684 | -6/Waste | Spotted C-40 Crusher 21685 | -6/Waste | Spotted C-40 Crusher 21694 | -6/Waste | Build established: Botlord-Gunner 21694 | -6/Waste | Spotted C-40 Crusher 21705 | -6/Waste | 1 allies followed down the chute 21709 | -6/Waste | Allies destroyed C-40 Crusher 21710 | -6/Waste | Spotted C-40 Crusher 21715 | -6/Waste | 4 allies followed down the chute 21718 | -6/Waste | Spotted C-40 Crusher 21743 | -6/Waste | Discovered new exit (range 10) 21745 | -6/Waste | EMP discharged 21745 | -6/Waste | System corruption reached 10% 21765 | -6/Waste | Spotted C-40 Crusher 21836 | -6/Waste | Entered Factory 21836 | -6/Factory | Accompanied by 2 allies 22500 | -6/Factory | Identified exit to Garrison 22579 | -6/Factory | Discovered new exit (range 5) 23394 | -6/Factory | P-60 Hacker assimilated allied Processor 5d 23531 | -6/Factory | Entered Garrison 23531 | -6/Garrison | Accompanied by 9 allies 23641 | -6/Garrison | Spotted B-75 Beast 23659 | -6/Garrison | Triggered checkpoint 23670 | -6/Garrison | Destroyed B-75 Beast 23679 | -6/Garrison | Build established: Bothacker-Gunner 23844 | -6/Garrison | Garrison Relay disabled 24151 | -6/Garrison | Triggered checkpoint 24160 | -6/Garrison | Triggered checkpoint 24194 | -6/Garrison | Lost 3 allies 24198 | -6/Garrison | Build established: Botlord-Gunner 24430 | -6/Garrison | Triggered checkpoint 24437 | -6/Garrison | Discovered new exit (range 12) 24497 | -6/Garrison | Garrison Relay disabled 24500 | -6/Garrison | Triggered checkpoint 24667 | -6/Garrison | Triggered checkpoint 24716 | -6/Garrison | Discovered new exit (range 60) 24716 | -6/Garrison | Discovered new exit (range 50) 24716 | -6/Garrison | Discovered new exit (range 22) 24749 | -6/Garrison | Garrison Relay disabled 24778 | -6/Garrison | Spotted B-86 Titan 24988 | -6/Garrison | Spotted B-90 Cyclops 25004 | -6/Garrison | Allies destroyed B-86 Titan 25015 | -6/Garrison | Destroyed B-90 Cyclops 25057 | -6/Garrison | Rewired B-75 Beast 25359 | -6/Garrison | Triggered checkpoint 25369 | -6/Garrison | Triggered checkpoint 25894 | -6/Garrison | Expanded RIF knowledge: Autooverride 25958 | -6/Garrison | Garrison Relay disabled 26304 | -6/Garrison | Entered Factory 26304 | -5/Factory | Accompanied by 11 allies 26304 | -5/Factory | Evolved 2 slots: Utility x2 26328 | -5/Factory | Discovered new exit (range 6) 26405 | -5/Factory | Identified exit to Garrison 26454 | -5/Factory | Lost 7 allies 26462 | -5/Factory | Entered Garrison 26462 | -5/Garrison | Accompanied by 9 allies 26492 | -5/Garrison | Expanded RIF knowledge: Signal Jamming 26606 | -5/Garrison | Triggered checkpoint 26699 | -5/Garrison | Garrison Relay disabled 26996 | -5/Garrison | Spotted B-75 Beast 27018 | -5/Garrison | Destroyed B-75 Beast 27028 | -5/Garrison | Triggered checkpoint 27030 | -5/Garrison | Triggered checkpoint 27080 | -5/Garrison | Destroyed 12 combat bots 27268 | -5/Garrison | Triggered checkpoint 27556 | -5/Garrison | Triggered checkpoint 27565 | -5/Garrison | Discovered new exit (range 13) 27628 | -5/Garrison | Triggered checkpoint 27785 | -5/Garrison | Spotted B-86 Titan 27793 | -5/Garrison | Spotted B-90 Cyclops 27867 | -5/Garrison | Triggered checkpoint 27922 | -5/Garrison | Discovered new exit (range 2) 27931 | -5/Garrison | Build established: Botlord-Tank 27966 | -5/Garrison | Garrison Relay disabled 28051 | -5/Garrison | Rescued a captive Derelict 28052 | -5/Garrison | Rescued a captive Derelict 28182 | -5/Garrison | Destroyed B-86 Titan 28197 | -5/Garrison | Allies destroyed B-90 Cyclops 28221 | -5/Garrison | Rewired B-86 Titan 28245 | -5/Garrison | Rewired B-86 Titan 29013 | -5/Garrison | Garrison Relay disabled 29019 | -5/Garrison | Triggered checkpoint 29061 | -5/Garrison | Discovered new exit (range 2) 29452 | -5/Garrison | Entered Factory 29452 | -5/Factory | Accompanied by 14 allies 29588 | -5/Factory | Identified exit to Garrison 29693 | -5/Factory | Entered Garrison 29693 | -5/Garrison | Accompanied by 14 allies 30100 | -5/Garrison | Lost 4 allies 30227 | -5/Garrison | Triggered checkpoint 30264 | -5/Garrison | Found embedded Infiltrators 30273 | -5/Garrison | Garrison Relay disabled 30285 | -5/Garrison | Spotted Titan 6a 30287 | -5/Garrison | P-70 Sage assimilated allied Archangel 6a 30292 | -5/Garrison | Allies destroyed Titan 6a 30404 | -5/Garrison | Spotted B-75 Beast 30413 | -5/Garrison | Triggered checkpoint 30419 | -5/Garrison | Destroyed B-75 Beast 30429 | -5/Garrison | Triggered checkpoint 30439 | -5/Garrison | Triggered checkpoint 30441 | -5/Garrison | Triggered checkpoint 30482 | -5/Garrison | Destroyed 8 combat bots 30714 | -5/Garrison | Spotted Striker 30714 | -5/Garrison | Spotted Striker 30738 | -5/Garrison | Destroyed Striker 30742 | -5/Garrison | Destroyed Striker 30891 | -5/Garrison | Expanded RIF knowledge: Alert ID Control 30906 | -5/Garrison | Triggered checkpoint 30909 | -5/Garrison | Discovered new exit (range 11) 31009 | -5/Garrison | Triggered checkpoint 31038 | -5/Garrison | Garrison Relay disabled 31140 | -5/Garrison | Triggered checkpoint 31202 | -5/Garrison | Garrison Relay disabled 31949 | -5/Garrison | Garrison Relay disabled 31955 | -5/Garrison | Triggered checkpoint 32031 | -5/Garrison | Rescued a captive Derelict 32051 | -5/Garrison | Discovered new exit (range 2) 32122 | -5/Garrison | Spotted B-90 Cyclops 32298 | -5/Garrison | Spotted B-86 Titan 32313 | -5/Garrison | Destroyed B-90 Cyclops 32325 | -5/Garrison | Rewired B-90 Cyclops 32328 | -5/Garrison | Rewired B-86 Titan 32329 | -5/Garrison | Destroyed B-86 Titan 32504 | -5/Garrison | Triggered checkpoint 32561 | -5/Garrison | Garrison Relay disabled 32611 | -5/Garrison | Discovered new exit (range 19) 32623 | -5/Garrison | Build established: Commander-Tank 33055 | -5/Garrison | Found Relay Coupler [Proto] 33058 | -5/Garrison | Found Relay Coupler [Proto] 33060 | -5/Garrison | Found Relay Coupler [Proto] 33066 | -5/Garrison | Found Relay Coupler [Proto] 33308 | -5/Garrison | Build established: Botlord-Tank 34918 | -5/Garrison | Entered Factory 34918 | -4/Factory | Accompanied by 13 allies 34918 | -4/Factory | Evolved 2 slots: Power x1, Utility x1 35137 | -4/Factory | Spotted B-86 Titan 35168 | -4/Factory | First assault squad dispatched 35296 | -4/Factory | Lost 8 allies 35499 | -4/Factory | High security lockdown imminent 35510 | -4/Factory | Sucked down chute 35510 | -4/Factory | Entered Waste 35525 | -4/Waste | EMP discharged 35526 | -4/Waste | Spotted C-40 Crusher 35560 | -4/Waste | 8 allies followed down the chute 35572 | -4/Waste | Spotted C-40 Crusher 35589 | -4/Waste | Spotted C-40 Crusher 35595 | -4/Waste | Spotted C-40 Crusher 35599 | -4/Waste | Spotted C-40 Crusher 35625 | -4/Waste | EMP discharged 35625 | -4/Waste | System corruption reached 10% 35638 | -4/Waste | Spotted C-40 Crusher 35650 | -4/Waste | Discovered new exit (range 10) 35719 | -4/Waste | Entered Factory 35719 | -4/Factory | Accompanied by 2 allies 35887 | -4/Factory | Discovered new exit (range 11) 36452 | -4/Factory | Spotted B-86 Titan 36469 | -4/Factory | First assault squad dispatched 36602 | -4/Factory | Lost 4 parts (2n1u1w) 36999 | -4/Factory | Identified exit to Garrison 36999 | -4/Factory | Entered Garrison 36999 | -4/Garrison | Accompanied by 1 ally 37289 | -4/Garrison | Garrison Relay disabled 37323 | -4/Garrison | Triggered checkpoint 37577 | -4/Garrison | Triggered checkpoint 37749 | -4/Garrison | Garrison Relay disabled 37769 | -4/Garrison | Triggered checkpoint 37833 | -4/Garrison | Garrison Relay disabled 37847 | -4/Garrison | Garrison Relay disabled 37896 | -4/Garrison | Garrison Relay disabled 37984 | -4/Garrison | Discovered new exit (range 13) 37992 | -4/Garrison | Spotted Striker 38010 | -4/Garrison | Core integrity fell below 50% 38016 | -4/Garrison | Destroyed Striker 38035 | -4/Garrison | Lost 4 allies 38085 | -4/Garrison | Lost 7 parts (1p1n1u4w) 38150 | -4/Garrison | Found Prototype Device 38150 | -4/Garrison | Identified Exp. Actuator Array 38329 | -4/Garrison | Build established: Botlord-Mutant 38995 | -4/Garrison | Triggered checkpoint 39000 | -4/Garrison | Triggered checkpoint 39051 | -4/Garrison | Build established: Botlord-Tank 39095 | -4/Garrison | Triggered checkpoint 39223 | -4/Garrison | Discovered new exit (range 59) 39223 | -4/Garrison | Discovered new exit (range 16) 39223 | -4/Garrison | Discovered new exit (range 24) 39387 | -4/Garrison | Garrison Relay disabled 39601 | -4/Garrison | Expanded RIF knowledge: Code Merge 39695 | -4/Garrison | Lost 4 allies 39700 | -4/Garrison | Destroyed 7 combat bots 39791 | -4/Garrison | Garrison Relay disabled 39900 | -4/Garrison | Spotted B-86 Titan 39914 | -4/Garrison | System corruption reached 30% 39931 | -4/Garrison | Core integrity fell below 20% 39932 | -4/Garrison | Released all parts (11) 39949 | -4/Garrison | Destroyed by B-86 Titan with Hardcell Cannon Last Messages --------------- 39932_ Released Cargo Storage Unit. 39932_ Released Relay Coupler [Sentry]. 39932_ Released Relay Coupler [Grunt]. 39932_ Released Relay Coupler [Duelist]. 39932_ Released Field Laser. 39932_ Released Plasma Rifle. 39932_ Released Force Rifle. 39933_ Dropped Adv. Recoil Stabilizer. 39933_ Acquired Power Sword. 39935_ Dropped Graphene Brace. 39935_ Acquired Adv. Datajack. 39939_ Dropped Matter Compressor. 39939_ Acquired Relay Coupler [Behemoth]. 39940_ The unstable cave ceiling collapses. 39940_ Relay Coupler [NC] crushed. 39941_ Acquired 18 matter. 39942_ Acquired 16 matter. 39943_ Penetrated by Slug. 39943_ Acquired 13 matter. 39949_ Adv. Datajack destroyed. Map ----- +----------------------------------------------------+ | ????????????????# ! + | | ????????????????# + | | ????????????????########### ## #### #### | | ??????????????????????????# ## #??# #??# | | ??????????????????????????##+### #??# #??# | | ???????????????????????????# #?# #??# #??# | | ???????????????????????????# #?# #??# #??# | | ???????????????????????????# #?# #??# #??# | | ???????????????????????????# ###*[=####+####++ | | ???????????????????????????# +% %[ | | ???????????????????????????#####%=* | | ???????????????????????????????#=%*[ [ | | ???????????????????????????????########+### | | ??????????????????????????????????????# ### | | ??????????????????????????????????????# + | | ??????????????????????????????????????### | | ????????????????????????????????????????# = | | ????????????????????????????????????????# = | | ????????????????###########?????????????### % | | ????????????????#"""""""""#???????????????# | | ???????????????##" !!!!"##??????????????# % | | ???????????????# #??????????????# | | ???????????????## BB ##??????????????# | | ????????????????###BB######???????????????## | | ???????????????###; !;######???????????????# | | ??????????????## #! @!!!# ##??????????????# | | ??????????????# + #??????????????# | | ??????????????## % # ##??????????????# | | ?????????????###! [ ###???????????????# | | ?????????????#[!!!%[ ####?????????????????# | | ?????????????##| ![*! ##################### | | ?????????????##!!% % | | ?????????????#!!! =! | | ?????????????#%]!!![ ######### | | ?????????????#!!!!! #???????# | | ?????????????# # [ * #???????# | | ?????????????# ;! %% % #???????# | | ?????????????##; %=* #???????# | | ??????????????## *% #???????# | | ???????????????# = #???????# | | ???????????????# < #???????# | | ???????????????# * #???????# | | ???????????????# = #???????#^ | | ???????????????# #???????# | | ???????????????# #???????# | | ???????????????# #???????# | | ???????????????# #???????# | | ???????????????# #???????# | | ???????????????# #???????# | | ???????????????# #???????# | +----------------------------------------------------+ Best States ------------- Heat Dissipation 105 Coolant Potential 100 Energy Generation 53 Energy Capacity 600 Matter Stores 440 Matter Capacity 450 Sight Range 22 Terrain Scan Density 10 EM Shielding 3 Armor Coverage 225 Resistance: KI 30 Core Shielding 40 Weapon Cycling 30 Evasion (%) 64 Target Analysis 6 Core Analysis 6 Recoil Reduction 5 Offensive Hacking 10 Relay Coupler Types 5 Relay Coupler Value 130 Item Schematics ----------------- Lgt. Assault Rifle | -10/Materials | Hacked Lgt. Treads | -10/Materials | Hacked Hcp. Storage Unit | -9/Materials | Scanalyzed Arm. Wheel | -9/Materials | Scanalyzed Datajack | -9/Materials | Scanalyzed Matter Compressor | -7/Factory | Scanalyzed Huge Storage Unit | -7/Factory | Scanalyzed Cargo Storage Unit | -6/Factory | Scanalyzed Arm. Huge Wheel | -6/Factory | Scanalyzed Robot Schematics ------------------ M-13 Machinist | -10/Materials | Hacked Fabricated ------------ Nothing Repaired ---------- Med. Armor Plating | 24% | -9/Materials Rnf. Ion Engine | 52% | -9/Materials Imp. Assault Rifle | 40% | -9/Materials Imp. Assault Rifle | 61% | -8/Materials Alien Tech Used ----------------- None Achievements -------------- None Challenges ------------ None Game ------ Seed AbsorptionLatentEdition Manual? 0 Play Time 07:26:04 Cumulative 922.4 hours Start 2025.06.14 @ 22:29:49 End 2025.06.15 @ 21:06:54 Sessions 9 Manual Loads 0 Difficulty Rogue Special Mode None Game No. 486 Rogue 486 Adventurer 0 Explorer 0 Win Type - Total 23 Types 10/4/3/0/1/1/2/2/0/0 Lore% 84 Gallery% 85 Achievement% 83 Wizard Run 0 Options --------- Layout 0 ASCII 0 Keyboard 0 Movement Numpad Keybinds 0 Fullscreen 2 Font 24/Smallcaps Map View 76x50 Zoom Use 0% Tactical HUD 1 Map Filters SHIFT_HUE(45) Filters SHIFT_HUE(315) Steam 1 RUN: 750659a1-1585-4e8a-8b16-bb424776c389